Cogmind - Beta 16 @@@ ROGUE MODE // 2025.12.13 @ 16:21:00 Player: BlobtheGreat Result: Destroyed by G-34 Mercenary with Small Laser Performance ------------- Evolutions (0) 0 Regions Visited (2) 400 Robots Destroyed (23) 115 Value Destroyed (526) 526 Prototype IDs (0) 0 Alien Tech Used (0) 0 Bonus (0) 0 TOTAL SCORE: 1041 Bonus ------- None Cogmind --------- Core Integrity 0/250 Matter 290/300 Energy 100/100 System Corruption 0% Temperature Cool (6) Movement Treading (160) Location -10/Mines Parts ------- > --- POWER (1) -------- (None) > --- PROPULSION (2) --- Light Treads Improved Treads > --- UTILITY (2) ------ Large Storage Unit Core Shielding > --- WEAPON (2) ------- Spread Laser Spread Laser > --- INVENTORY (15) --- Ion Engine Light Treads Improved Treads Improved Treads Improved Heat Sink Seismic Detector Datajack Mining Laser Peak State ------------ > --- POWER ------------ Ion Engine > --- PROPULSION ------- Light Treads Light Treads > --- UTILITY ---------- Medium Storage Unit Core Shielding > --- WEAPON ----------- Spread Laser Spread Laser > --- INVENTORY -------- Ion Engine Light Treads Light Treads Improved Treads Improved Treads Improved Treads Aluminum Leg Compact Wheel Seismic Detector Mining Laser [Rating: 10] Favorites ----------- Power Ion Engine Engine Ion Engine Propulsion Light Treads Treads Light Treads Utility Seismic Detector Device Seismic Detector Storage Small Storage Unit Protection Core Shielding Weapon Light Assault Rifle Energy Gun Spread Laser Ballistic Gun Light Assault Rifle Special Weapon Mining Laser Build | -11 -10 -10 ------- Run | Yrd Mat Min Slots Evolved . | . . . Power . | . . . Propulsion . | . . . Utility . | . . . Weapon . | . . . Parts Attached 20 | 7 10 3 Power 1 | 1 . . Engine 1 | 1 . . Core . | . . . Reactor . | . . . Propulsion 5 | 2 1 2 Treads 5 | 2 1 2 Leg . | . . . Wheel . | . . . Hover . | . . . Flight . | . . . Utility 5 | 2 3 . Device 1 | 1 . . Storage 3 | 1 2 . Processor . | . . . Hackware . | . . . Protection 1 | . 1 . Artifact . | . . . Weapon 9 | 2 6 1 Energy Gun 6 | 1 4 1 Energy Cannon . | . . . Ballistic Gun 2 | 1 1 . Ballistic Cannon . | . . . Launcher . | . . . Special Weapon 1 | . 1 . Impact Weapon . | . . . Slashing Weapon . | . . . Piercing Weapon . | . . . Special Melee Weapon . | . . . Unidentified Prototypes . | . . . Parts Lost 7 | . 3 4 Power 1 | . . 1 Propulsion 3 | . 1 2 Utility 1 | . 1 . Weapon 2 | . 1 1 Highest Loss Streak 4 | . 1 4 To Critical Strikes . | . . . Average Backups 7 | 4 8 8 Power . | . 1 1 Propulsion 3 | 3 3 3 Utility 1 | . 1 1 Weapon 1 | . 1 1 Tool/Special . | . . . Unused Backups 11 | . 4 7 Power 1 | . . 1 Propulsion 7 | . 4 3 Utility 1 | . . 1 Weapon 1 | . . 1 Tool/Special 1 | . . 1 Average Slot Usage (%) 98 | . 99 87 Engine 13 | . 14 7 Treads 27 | . 27 27 Device 7 | . 7 . Storage 14 | . 14 14 Protection 6 | . 5 14 Energy Gun 11 | . 10 23 Ballistic Gun 15 | . 16 . Peak Build Rating 10 | 7 10 10 Average Rating 7 | 5 7 9 On Entrance 5 | . 7 10 Avg Prop Armor Cover (%) . | . . . Naked Turns . | . . . Heaviest Build 32 | 14 32 32 Greatest Support 43 | 40 40 43 Greatest Overweight (x) 1 | . . 1 Average Overweight (x) . | . . . Largest Inventory Capacity 15 | 8 15 15 Average Capacity 10 | 7 9 15 Most Carried 10 | 8 10 9 Average Carried 7 | 4 8 8 Final Capacity 15 | 8 15 15 Final Carried 9 | 8 9 8 Class Distribution -------------------- 100% | Mutant Dominant Class ---------------- Mutant | -10/Materials Mutant | -10/Mines Resources | -11 -10 -10 ----------- Run | Yrd Mat Min Matter Collected 481 | 279 179 23 Remotely . | . . . Salvage Created 730 | 123 471 136 Parts 35 | 7 22 6 Haulers Intercepted 2 | . 2 . Recyclers Shooed . | . . . Parts Field Recycled . | . . . Retrieved Matter . | . . . Parts Self-Destructed . | . . . Prevented . | . . . Parts Restored . | . . . Kills | -11 -10 -10 ------- Run | Yrd Mat Min Combat Hostiles Destroyed 17 | . 13 4 Guns 17 | . 13 4 Classes Destroyed 6 | 2 3 1 Tunneler 3 | 3 . . Hauler 2 | . 2 . Recycler 1 | 1 . . Swarmer 6 | . 6 . Grunt 9 | . 7 2 Sentry 2 | . . 2 Best Kill Streak 4 | 4 3 4 Combat Bots Only 4 | . 3 4 Max Kills in Single Turn 1 | 1 1 1 Gunslinging . | . . . Exploded . | . . . Melee . | . . . Uniques/NPCs Destroyed . | . . . Combat | -11 -10 -10 -------- Run | Yrd Mat Min Hostile Shots Fired 126 | . 78 48 Missed 22 | . 17 5 Hits 104 | . 61 43 Projectile 104 | . 61 43 Critical Strikes 3 | . 2 1 Actively Blocked 2 | . 1 1 Damage Taken 1239 | . 622 617 Core 254 | . 117 137 Absorbed by Shields . | . . . Redirected to Shielding 43 | . 13 30 Core Remaining (%) 100 | 100 . . Volleys Fired 90 | 9 69 12 Largest 2 | 2 2 2 Hottest 130 | 70 130 130 Shots Fired 168 | 18 134 16 Gun 164 | 18 130 16 Cannon . | . . . Launcher . | . . . Special 4 | . 4 . Kinetic 103 | 9 94 . Thermal 57 | 9 32 16 Explosive . | . . . Electromagnetic 8 | . 8 . Robot Hit Streak 14 | 6 13 14 Robot Miss Streak 4 | 4 4 3 Penetration Max . | . . . Secondary Targets . | . . . Shots Hit Robots 109 | 11 82 16 Core Hits 71 | 6 44 21 Critical Kills 1 | . 1 . Critical Parts Destroyed . | . . . Critical Strikes 2 | . 2 . Burn 1 | . 1 . Destroy 1 | . 1 . Melee Attacks . | . . . Impact . | . . . Slashing . | . . . Piercing . | . . . Sneak Attacks . | . . . Combat Hostiles . | . . . Follow-up Attacks . | . . . Damage Inflicted 1148 | 122 762 264 Guns 1142 | 122 756 264 Cannons . | . . . Explosions . | . . . Melee . | . . . Ramming 6 | . 6 . Kinetic 511 | 35 476 . Thermal 564 | 87 213 264 Explosive . | . . . Electromagnetic 67 | . 67 . Impact . | . . . Slashing . | . . . Piercing . | . . . Highest Corruption . | . . . Average Corruption . | . . . Corruption Purged . | . . . Corruption Blocked . | . . . Overload Shots . | . . . Overflow Damage . | . . . Projectiles . | . . . Explosions . | . . . Melee . | . . . Knockbacks . | . . . Impact . | . . . Kinetic . | . . . Secondary . | . . . Self-Inflicted Damage . | . . . Shots . | . . . Rammed 4 | . 3 1 Targets Rammed 4 | . 3 1 Kicked . | . . . Crushed . | . . . Highest Temperature 379 | 100 379 322 Average Temperature 90 | 40 78 161 Received Heat Transfer 495 | . 243 252 Effects 3 | . 2 1 Shutdowns 1 | . 1 . Short Circuit 1 | . 1 . Damage (minor) 1 | . . 1 Siege Activations . | . . . Martial Activations . | . . . Shielding Activations . | . . . Robots Disrupted . | . . . Combat Hostiles . | . . . Robots Corrupted . | . . . Combat Hostiles . | . . . Parts Fried . | . . . Impact Corruptions . | . . . Robots Melted . | . . . Combat Hostiles . | . . . Parts Melted 1 | 1 . . Heat Transferred 1077 | 259 488 330 Parts Sabotaged . | . . . Parts Stolen . | . . . Parts Stripped . | . . . Power Chain Reactions . | . . . Alert | -11 -10 -10 ------- Run | Yrd Mat Min Maximum Alert Level . | . . . Low Security (%) 100 | 100 100 100 Level 1 . | . . . Level 2 . | . . . Level 3 . | . . . Level 4 . | . . . Level 5 . | . . . High Security . | . . . Max Security . | . . . Peak Influence 99 | 5 99 60 Initial 12 | . . 12 Average 35 | . 40 17 Influence Increases 576 | 20 466 90 Destroy 0b10 Robot/C 340 | . 260 80 Destroy 0b10 Robot/NC 30 | 20 10 . Destroy Leader 64 | . 54 10 Successful Hack 33 | . 33 . Select Force Hacks 30 | . 30 . Destroy Structure 4 | . 4 . Partial Spotted 15 | . 15 . Lose Combat Pursuer 60 | . 60 . Influence Decreases 546 | 20 433 93 Entered New Map 21 | . . 21 Time Decay 475 | 20 403 52 Lost Part 50 | . 30 20 Squads Dispatched 2 | . 2 . Investigation 1 | . 1 . Extermination . | . . . Reinforcement 1 | . 1 . Assault . | . . . Garrison . | . . . Intercept . | . . . Searches Triggered . | . . . Construction Impeded . | . . . Haulers Reinforced . | . . . Active Scanning Responses . | . . . Cargo Convoy Interrupts . | . . . Stealth | -11 -10 -10 --------- Run | Yrd Mat Min Distress Signals 1 | . 1 . Communications Jammed . | . . . Distress Signals . | . . . Times Spotted 27 | . 21 6 Peak Tracking Total 4 | . 4 4 Tactical Retreats 3 | . 3 . Traps | -11 -10 -10 ------- Run | Yrd Mat Min Traps Triggered . | . . . Indirectly . | . . . Trap Hack Attempts . | . . . Triggered . | . . . Disarmed . | . . . Reprogrammed . | . . . Reused . | . . . Traps Extracted . | . . . Installed . | . . . Triggered . | . . . Machines | -11 -10 -10 ---------- Run | Yrd Mat Min Machines Disabled . | . . . Max in Single Turn . | . . . Machines Repaired . | . . . Machines Dismantled . | . . . Machines Sabotaged . | . . . Overloaded Fab Kills . | . . . Hacking | -11 -10 -10 --------- Run | Yrd Mat Min Machines Accessed 7 | . 7 . Terminals 6 | . 6 . Fabricators . | . . . Repair Stations . | . . . Recycling Units 1 | . 1 . Scanalyzers . | . . . Garrison Access . | . . . Total Hacks 29 | . 29 . Successful 16 | . 16 . Failed 13 | . 13 . Catastrophic 2 | . 2 . Database Lockouts . | . . . Manual 28 | . 28 . Terminals 27 | . 27 . Fabricators . | . . . Repair Stations . | . . . Recycling Units 2 | . 2 . Scanalyzers . | . . . Garrison Access . | . . . Terminal Hacks 6 | . 6 . Part Schematic 2 | . 2 . Robot Analysis 2 | . 2 . Locate Traps 1 | . 1 . Hauler Manifests 1 | . 1 . Fabricator Hacks . | . . . Repair Station Hacks . | . . . Recycling Unit Hacks . | . . . Scanalyzer . | . . . Garrison Access Hacks . | . . . Unauthorized Hacks 10 | . 10 . Terminals 9 | . 9 . Assimilate 1 | . 1 . Botnet 2 | . 2 . Skim 6 | . 6 . Fabricators . | . . . Repair Stations . | . . . Recycling Units 1 | . 1 . Tunnel 1 | . 1 . Scanalyzers . | . . . Garrison Access . | . . . Data Cores Recovered . | . . . Used . | . . . Hacking Detections 7 | . 7 . Full Trace Events 1 | . 1 . Feedback Events . | . . . Feedback Blocked . | . . . Robot Schematics Acquired . | . . . Robots Built . | . . . Authchips . | . . . Time . | . . . Total Robot Build Rating . | . . . Part Schematics Acquired 2 | . 2 . Parts Built . | . . . Authchips . | . . . Time . | . . . Total Part Build Rating . | . . . Part Studies Acquired . | . . . Parts Repaired . | . . . Time . | . . . Parts Recycled . | . . . Recycled Matter . | . . . Retrieved Matter . | . . . Retrieved Components . | . . . Parts Scanalyzed . | . . . Part Schematics Acquired . | . . . Parts Damaged . | . . . Bothacking | -11 -10 -10 ------------ Run | Yrd Mat Min Used RIF Installer . | . . . Robots Hacked . | . . . Non-combat . | . . . Combat . | . . . Robot Hacks Applied . | . . . Relay Couplers Released . | . . . Fabnet Peak Effective % . | . . . Robots Rewired . | . . . Allies Hacked . | . . . Hacks Repelled . | . . . Allies | -11 -10 -10 -------- Run | Yrd Mat Min Total Allies . | . . . Largest Group . | . . . Highest-Rated Group . | . . . Highest-Rated Ally . | . . . Total Orders . | . . . Ally Attacks . | . . . Total Damage . | . . . Kills . | . . . Allies Corrupted . | . . . Allies Melted . | . . . Intel | -11 -10 -10 ------- Run | Yrd Mat Min Active Infowar (turns) 888 | 31 857 . Seismic 888 | 31 857 . Robot Analysis Total 2 | . 2 . Derelict Logs Recovered . | . . . Drone Launches . | . . . Drone Recoveries . | . . . Exploration | -11 -10 -10 ------------- Run | Yrd Mat Min Turns Passed 1828 | 126 1536 166 Spaces Moved 722 | 60 589 73 Core 11 | 11 . . Treads 711 | 49 589 73 Legs . | . . . Wheels . | . . . Hover . | . . . Flight . | . . . Fastest Speed 50 | 50 160 160 Average Speed 158 | 139 160 162 Slowest Speed 240 | 160 160 240 Overloaded Moves . | . . . Propulsion Burnouts . | . . . Robots Hopped . | . . . Potential Cave-ins . | . . . Cave-ins Triggered . | . . . Exploration Rate (%) 32 | 4 81 13 Regions Visited 2 Branch Regions 1 Pre-discovered Areas 1 | . 1 . Known Exits Taken 1 | . 1 . Unknown Exits Taken 1 | 1 . . Scrap Searched . | . . . Spaces Dug 4 | . 4 . Terrain Destroyed 4 | . 4 . Melee . | . . . Projectile 4 | . 4 . AOE . | . . . Terrain Rammed . | . . . Walls Destroyed . | . . . Machines Disabled . | . . . Actions | -11 -10 -10 --------- Run | Yrd Mat Min Total 1247 | 83 1060 104 Wait 377 | . 365 12 Move 720 | 59 588 73 Hop . | . . . Pick Up 20 | 8 10 2 Fast Attach 11 | 7 3 1 Attach 6 | . 4 2 Detach 1 | . 1 . Swap 6 | . 6 . Drop 12 | . 11 1 Fire 90 | 9 69 12 Melee . | . . . Ram . | . . . Kick . | . . . Crush 4 | . 3 1 Escape Stasis . | . . . Rewire . | . . . Trap . | . . . Miscellaneous . | . . . Route ------- -11/Scrapyard -10/Materials (discovered 5 exits: *Mat x3 / *Min / Sub) -10/Mines (discovered 1 exit: Sub) History --------- Turn | Location | Event 10 | -11/Scrapyard | Discovered new exit (range 15) 127 | -11/Scrapyard | Entered Materials 336 | -10/Materials | Build established: Mutant 883 | -10/Materials | Discovered new exit (range 13) 1241 | -10/Materials | Discovered new exit (range 10) 1468 | -10/Materials | Identified exit to Mines 1468 | -10/Materials | Identified exit to Materials 1545 | -10/Materials | Learned location of 1 exit from Storage 1571 | -10/Materials | Loaded intel: 8 terminal locations 1587 | -10/Materials | Learned Storage stockpile data 1591 | -10/Materials | Learned 2 Mines zone layouts 1592 | -10/Materials | Loaded intel: 1 repair station location 1596 | -10/Materials | Identified exit to Subcaves 1596 | -10/Materials | Learned location of 1 exit from Materials 1639 | -10/Materials | Learned location of 1 exit from Recycling 1663 | -10/Materials | Entered Mines 1732 | -10/Mines | Core integrity fell below 50% 1777 | -10/Mines | Core integrity fell below 20% 1807 | -10/Mines | Lost 4 parts (1p2n1w) 1829 | -10/Mines | Destroyed by G-34 Mercenary with Small Laser Last Messages --------------- 01639_ >> SKIM: Stored Recycling exits (x1). 01639_ >> SKIM: Data seek routine purged. LOCATION=MINES GOAL=ESCAPE Loading 2 Mines zones... 01745_ Lgt. Treads destroyed. 01745_ Ion Engine destroyed. 01749_ Slammed into Y-45 Defender. 01759_ G-34 Mercenary destroyed. 01763_ Spread Laser destroyed. 01768_ G-47 Trooper destroyed. 01774_ Y-45 Defender destroyed. 01776_ Overheating: Lgt. Treads damaged (-17). 01776_ Lgt. Treads destroyed. 01779_ Y-45 Defender destroyed. 01786_ Acquired Lgt. Treads. 01796_ Dropped Corrupted Lgt. Treads. 01796_ Acquired Lgt. Treads. 01797_ Acquired 23 matter. 01816_ Acquired Imp. Heat Sink. Map ----- +----------------------------------------------------+ | | | | | | | | | | | ?????????????????????????????????????????????????? | | ?????????????????????????????????????????????????? | | ??????????????????????????????????????####???????? | | ?????????????????????????????????????## ###?????? | | ?????????????????????????????????????# ##????? | | ?????????????????????????????????????# #????? | | ???????????# #########????????# #????? | | ?????????????""" #####???## #????? | | ?????????????""" ##### ##### ##???? | | ????????????????????????## ####? | | ?????????????????????###### #? | | ????????????????????##!!## g #### #? | | ????????????????????#"|! #% # g #??## #? | | ????????????????????# =%+ # ##??# ## #? | | ????????????????????# %+*! #??# ### #? | | ????????????????????#"!|%#! #??#########?# #? | | ????????????????????##!!## ##????????????# #? | | ?????????????????????##### #?????????????# #? | | ???????????????????????## ## #?????????????# #? | | ??????????????????????## ### #?????????????# #? | | ??????????????????????# @ #?# #????????????? #? | | ??????????????????????# #?# #????????????? #?? | | ??????????????????????## ##?# #????????????? ??? | | ???????????????????????####??? #????????????? ??? | | ?????????????????????????????? #????????????? ??? | | ?????????????????????????????? ?????????????? ??? | | ?????????????????????????????????????????????? ??? | | ?????????????????????????????????????????????? ??? | | ?????????????????????????????????????????????????? | | ?????????????????????????????????????????????????? | | ?????????????????????????????????????????????????? | | ?????????????????????????????????????????????????? | | ?????????????????????????????????????????????????? | | ?????????????????????????????????????????????????? | | ?????????????????????????????????????????????????? | | ?????????????????????????????????????????????????? | | ?????????????????????????????????????????????????? | | ?????????????????????????????????????????????????? | | ?????????????????????????????????????????????????? | | ?????????????????????????????????????????????????? | | ?????????????????????????????????????????????????? | | ?????????????????????????????????????????????????? | | ?????????????????????????????????????????????????? | | ?????????????????????????????????????????????????? | | ?????????????????????????????????????????????????? | +----------------------------------------------------+ Best States ------------- Heat Dissipation 25 Energy Generation 10 Energy Capacity 250 Matter Stores 300 Matter Capacity 300 Sight Range 16 Terrain Scan Density 10 Core Shielding 20 Evasion (%) 50 Recoil Reduction 2 Item Schematics ----------------- Hcp. Storage Unit | -10/Materials | Hacked Lrg. Storage Unit | -10/Materials | Hacked Robot Schematics ------------------ None Fabricated ------------ Nothing Repaired ---------- Nothing Studied --------- None Alien Tech Used ----------------- None Achievements -------------- None Challenges ------------ None Game ------ Seed TeleporterFissionEdition Manual? 0 Play Time 00:10:12 Cumulative 215.4 hours Start 2025.12.13 @ 16:02:51 End 2025.12.13 @ 16:21:00 Sessions 1 Manual Loads 0 Difficulty Rogue Special Mode None Game No. 207 Rogue 207 Adventurer 0 Explorer 0 Win Type - Total 10 Types 7/0/2/0/0/0/0/0/0/1 Lore% 85 Gallery% 74 Achievement% 59 Wizard Run 0 Options --------- Layout 1 ASCII 0 Keyboard 1 Movement Arrows Keybinds 0 Fullscreen 1 Font 24/Smallcaps Map View 50x40 Zoom Use 0% Tactical HUD 1 Map Filters NONE Filters NONE Steam 1 RUN: 8adea1cb-a6e6-446b-b60b-8b31c8c77557